[Event "*** Titled Tuesday Blitz"]
[Site "Chess.com"]
[Date "2020.05.05"]
[Round "3"]
[White "ZCorrales"]
[Black "Akhayan"]
[Result "0-1"]
[WhiteElo "2044"]
[BlackElo "2310"]
[TimeControl "180+1"]
[EndTime "10:30:27 PDT"]
[Termination "Akhayan won by checkmate"]

1. e4 {[%clk 0:03:00.9]} 1... e6 {[%clk 0:02:59.3]} 2. d4 {[%clk 0:02:59.5]}
2... d5 {[%clk 0:02:59.3]} 3. e5 {[%clk 0:02:56.9]} 3... c5 {[%clk 0:02:58.5]}
4. c3 {[%clk 0:02:57.1]} 4... Qb6 {[%clk 0:02:58.4]} 5. Nf3 {[%clk 0:02:57.1]}
5... Nc6 {[%clk 0:02:58.5]} 6. Bd3 {[%clk 0:02:56.8]} 6... Bd7 {[%clk
0:02:54.7]} 7. a3 {[%clk 0:02:47.8]} 7... cxd4 {[%clk 0:02:53.1]} 8. cxd4 {[%clk
0:02:46.5]} 8... Nxd4 {[%clk 0:02:52.3]} 9. O-O {[%clk 0:02:46.2]} 9... Nb3
{[%clk 0:02:34.5]} 10. Ra2 {[%clk 0:02:26.3]} 10... Nxc1 {[%clk 0:02:31.1]} 11.
Qxc1 {[%clk 0:02:25.8]} 11... Rc8 {[%clk 0:02:30.7]} 12. Qd2 {[%clk 0:02:25.4]}
12... Bb5 {[%clk 0:02:22.8]} 13. b4 {[%clk 0:02:19.2]} 13... Bxd3 {[%clk
0:02:17.9]} 14. Qxd3 {[%clk 0:02:18.8]} 14... Ne7 {[%clk 0:02:11.4]} 15. Nc3
{[%clk 0:02:14.2]} 15... Nc6 {[%clk 0:02:05.5]} 16. Re2 {[%clk 0:02:02]} 16...
Be7 {[%clk 0:01:57.2]} 17. Ng5 {[%clk 0:01:56.6]} 17... Bxg5 {[%clk 0:01:55.6]}
18. Kh1 {[%clk 0:01:54.7]} 18... Qd4 {[%clk 0:01:50.3]} 19. Qg3 {[%clk
0:01:48.7]} 19... Qf4 {[%clk 0:01:32.9]} 20. Qd3 {[%clk 0:01:44.1]} 20... O-O
{[%clk 0:01:26.9]} 21. g3 {[%clk 0:01:42.2]} 21... Qd4 {[%clk 0:01:20.9]} 22.
Rd1 {[%clk 0:01:30.1]} 22... Qxd3 {[%clk 0:01:20.1]} 23. Rxd3 {[%clk 0:01:29.9]}
23... Be7 {[%clk 0:01:18.6]} 24. f4 {[%clk 0:01:25.4]} 24... a6 {[%clk
0:01:17.7]} 25. Na4 {[%clk 0:01:23.7]} 25... Na7 {[%clk 0:01:12.5]} 26. Nb6
{[%clk 0:01:21.6]} 26... Rc6 {[%clk 0:01:10.6]} 27. Na4 {[%clk 0:01:14.1]} 27...
b5 {[%clk 0:01:09.5]} 28. Nc3 {[%clk 0:01:04.4]} 28... Rfc8 {[%clk 0:01:07.8]}
29. Nxd5 {[%clk 0:01:04.2]} 29... exd5 {[%clk 0:01:07]} 30. Rxd5 {[%clk
0:01:03.6]} 30... g6 {[%clk 0:01:02.3]} 31. Red2 {[%clk 0:00:48]} 31... R6c7
{[%clk 0:01:01.4]} 32. Kg2 {[%clk 0:00:47.3]} 32... Nc6 {[%clk 0:01:01.3]} 33.
Kh3 {[%clk 0:00:45]} 33... h5 {[%clk 0:01:00.6]} 34. g4 {[%clk 0:00:44.5]} 34...
hxg4+ {[%clk 0:01:00.1]} 35. Kxg4 {[%clk 0:00:44.4]} 35... Kg7 {[%clk
0:00:59.2]} 36. h4 {[%clk 0:00:44.6]} 36... Rh8 {[%clk 0:00:58.1]} 37. Rd7
{[%clk 0:00:43.5]} 37... Rxh4+ {[%clk 0:00:56.1]} 38. Kg3 {[%clk 0:00:43.3]}
38... Rxd7 {[%clk 0:00:47.2]} 39. Rxd7 {[%clk 0:00:42.4]} 39... Rh1 {[%clk
0:00:46.7]} 40. Rc7 {[%clk 0:00:41.9]} 40... Rc1 {[%clk 0:00:46.5]} 41. Kg4
{[%clk 0:00:39]} 41... Rc4 {[%clk 0:00:45.8]} 42. Kf3 {[%clk 0:00:38.2]} 42...
g5 {[%clk 0:00:43.8]} 43. Kg3 {[%clk 0:00:35]} 43... gxf4+ {[%clk 0:00:43.3]}
44. Kf2 {[%clk 0:00:35.3]} 44... Bf8 {[%clk 0:00:39.4]} 45. e6 {[%clk
0:00:34.4]} 45... Ne7 {[%clk 0:00:36.9]} 46. Ra7 {[%clk 0:00:31.9]} 46... fxe6
{[%clk 0:00:36.1]} 47. Rxa6 {[%clk 0:00:32.3]} 47... e5 {[%clk 0:00:36]} 48. Rb6
{[%clk 0:00:31.8]} 48... Rc3 {[%clk 0:00:33.9]} 49. Rxb5 {[%clk 0:00:31.8]}
49... Rxa3 {[%clk 0:00:33.3]} 50. Rxe5 {[%clk 0:00:31.8]} 50... Kf6 {[%clk
0:00:32.5]} 51. Re4 {[%clk 0:00:31]} 51... Kf5 {[%clk 0:00:31.5]} 52. Rc4 {[%clk
0:00:30.4]} 52... Ng6 {[%clk 0:00:29.9]} 53. b5 {[%clk 0:00:30.2]} 53... Rb3
{[%clk 0:00:29.2]} 54. Rc7 {[%clk 0:00:26.7]} 54... Rxb5 {[%clk 0:00:28.5]} 55.
Rf7+ {[%clk 0:00:27.2]} 55... Kg4 {[%clk 0:00:28.3]} 56. Rf6 {[%clk 0:00:26.6]}
56... Kg5 {[%clk 0:00:28.2]} 57. Rf7 {[%clk 0:00:26.3]} 57... Rb2+ {[%clk
0:00:28]} 58. Ke1 {[%clk 0:00:25.6]} 58... Bb4+ {[%clk 0:00:25.2]} 59. Kd1
{[%clk 0:00:25.3]} 59... Rg2 {[%clk 0:00:24.2]} 60. Rg7 {[%clk 0:00:20.7]} 60...
Kf5 {[%clk 0:00:23.3]} 61. Rf7+ {[%clk 0:00:20.5]} 61... Ke4 {[%clk 0:00:23.3]}
62. Rf6 {[%clk 0:00:19.4]} 62... f3 {[%clk 0:00:22.7]} 63. Re6+ {[%clk
0:00:18.9]} 63... Kf5 {[%clk 0:00:22.9]} 64. Re8 {[%clk 0:00:18.2]} 64... f2
{[%clk 0:00:22.3]} 65. Ke2 {[%clk 0:00:16.8]} 65... Rh2 {[%clk 0:00:21.2]} 66.
Kf1 {[%clk 0:00:14.2]} 66... Bc5 {[%clk 0:00:20.5]} 67. Rc8 {[%clk 0:00:13.2]}
67... Rh1+ {[%clk 0:00:20.1]} 68. Kg2 {[%clk 0:00:13.1]} 68... f1=Q+ {[%clk
0:00:19.5]} 69. Kg3 {[%clk 0:00:13.2]} 69... Qf2# {[%clk 0:00:19.3]} 0-1

[Event "*** Titled Tuesday Blitz"]
[Site "Chess.com"]
[Date "2020.05.05"]
[Round "3"]
[White "124chess"]
[Black "Fighter008"]
[Result "0-1"]
[WhiteElo "2727"]
[BlackElo "2547"]
[TimeControl "180+1"]
[EndTime "10:30:28 PDT"]
[Termination "Fighter008 won by resignation"]

1. e4 {[%clk 0:03:00]} 1... c5 {[%clk 0:02:59.4]} 2. Be2 {[%clk 0:02:59.8]} 2...
d6 {[%clk 0:02:57.1]} 3. f4 {[%clk 0:02:59.7]} 3... g6 {[%clk 0:02:57]} 4. Nf3
{[%clk 0:03:00.2]} 4... Bg7 {[%clk 0:02:57.2]} 5. O-O {[%clk 0:03:00.9]} 5...
Nc6 {[%clk 0:02:57.2]} 6. d3 {[%clk 0:03:01]} 6... e6 {[%clk 0:02:57.5]} 7. c3
{[%clk 0:03:00.8]} 7... Nge7 {[%clk 0:02:57.7]} 8. Be3 {[%clk 0:03:01.1]} 8...
O-O {[%clk 0:02:56.7]} 9. d4 {[%clk 0:03:01.4]} 9... cxd4 {[%clk 0:02:55.6]} 10.
cxd4 {[%clk 0:03:02.3]} 10... f5 {[%clk 0:02:55.8]} 11. e5 {[%clk 0:03:01.9]}
11... Nd5 {[%clk 0:02:52.2]} 12. Qd2 {[%clk 0:03:02.1]} 12... dxe5 {[%clk
0:02:48.8]} 13. dxe5 {[%clk 0:03:01.9]} 13... b6 {[%clk 0:02:17.2]} 14. Nc3
{[%clk 0:02:59.7]} 14... Nce7 {[%clk 0:02:17.3]} 15. Nb5 {[%clk 0:02:30.3]}
15... Nxe3 {[%clk 0:02:14.9]} 16. Qxe3 {[%clk 0:02:29.8]} 16... Nd5 {[%clk
0:02:15.2]} 17. Qd4 {[%clk 0:02:21.8]} 17... Ba6 {[%clk 0:02:06.4]} 18. Bc4
{[%clk 0:01:44.3]} 18... Bxb5 {[%clk 0:01:59.2]} 19. Bxb5 {[%clk 0:01:44]} 19...
Qe7 {[%clk 0:01:59.4]} 20. Bc6 {[%clk 0:01:30.6]} 20... Rad8 {[%clk 0:01:55.9]}
21. Bxd5 {[%clk 0:01:31.1]} 21... Rxd5 {[%clk 0:01:56.3]} 22. Qc4 {[%clk
0:01:23.6]} 22... Rc5 {[%clk 0:01:53.4]} 23. Qb3 {[%clk 0:01:22.8]} 23... h6
{[%clk 0:01:45.2]} 24. Rfd1 {[%clk 0:01:20.5]} 24... Re8 {[%clk 0:01:01.8]} 25.
h4 {[%clk 0:01:13.9]} 25... Bf8 {[%clk 0:00:55.1]} 26. Rd2 {[%clk 0:01:02.1]}
26... Qc7 {[%clk 0:00:52.2]} 27. Rad1 {[%clk 0:01:01.1]} 27... Rc4 {[%clk
0:00:51.3]} 28. g3 {[%clk 0:00:51]} 28... Qc5+ {[%clk 0:00:51.3]} 29. Kg2 {[%clk
0:00:49]} 29... Rc8 {[%clk 0:00:50.7]} 30. Rd4 {[%clk 0:00:33.7]} 30... b5
{[%clk 0:00:47.8]} 31. Rxc4 {[%clk 0:00:31.2]} 31... bxc4 {[%clk 0:00:48.4]} 32.
Qc2 {[%clk 0:00:29.3]} 32... Qc6 {[%clk 0:00:47.5]} 33. b3 {[%clk 0:00:22.9]}
33... Qa6 {[%clk 0:00:30.1]} 34. bxc4 {[%clk 0:00:16.3]} 34... Rxc4 {[%clk
0:00:31]} 35. Qe2 {[%clk 0:00:15.6]} 35... Qc6 {[%clk 0:00:30.5]} 36. Rd2 {[%clk
0:00:13.9]} 36... Rc3 {[%clk 0:00:30.3]} 37. Rd3 {[%clk 0:00:09.4]} 37... Rc2
{[%clk 0:00:28.7]} 38. Rd2 {[%clk 0:00:09.8]} 38... Rc3 {[%clk 0:00:29]} 39. Rd3
{[%clk 0:00:05.1]} 39... Rc1 {[%clk 0:00:24.8]} 40. Rd2 {[%clk 0:00:05.1]} 40...
Bb4 {[%clk 0:00:23.3]} 41. Rb2 {[%clk 0:00:04.8]} 41... a5 {[%clk 0:00:22.8]}
42. a4 {[%clk 0:00:04.5]} 42... Rc3 {[%clk 0:00:21.9]} 43. h5 {[%clk 0:00:04.7]}
43... g5 {[%clk 0:00:21.5]} 44. fxg5 {[%clk 0:00:04.9]} 44... hxg5 {[%clk
0:00:22.4]} 45. Rd2 {[%clk 0:00:03.4]} 45... g4 {[%clk 0:00:22.2]} 46. Rd8+
{[%clk 0:00:03.8]} 46... Kh7 {[%clk 0:00:21.5]} 47. Qd2 {[%clk 0:00:03.5]} 47...
Rc2 {[%clk 0:00:20.4]} 0-1

[Event "*** Titled Tuesday Blitz"]
[Site "Chess.com"]
[Date "2020.05.05"]
[Round "3"]
[White "saikrishnaReturns"]
[Black "rynos0411"]
[Result "1-0"]
[WhiteElo "2596"]
[BlackElo "2381"]
[TimeControl "180+1"]
[EndTime "10:30:30 PDT"]
[Termination "saikrishnaReturns won by resignation"]

1. e4 {[%clk 0:03:00.9]} 1... e5 {[%clk 0:02:57.2]} 2. Nf3 {[%clk 0:03:00.3]}
2... Nc6 {[%clk 0:02:57.6]} 3. Bb5 {[%clk 0:03:00.7]} 3... a6 {[%clk 0:02:57.8]}
4. Ba4 {[%clk 0:03:01.3]} 4... Nf6 {[%clk 0:02:57.3]} 5. O-O {[%clk 0:03:01.9]}
5... Be7 {[%clk 0:02:57.8]} 6. Re1 {[%clk 0:03:02.4]} 6... b5 {[%clk 0:02:58.2]}
7. Bb3 {[%clk 0:03:03]} 7... O-O {[%clk 0:02:58.8]} 8. h3 {[%clk 0:03:02.5]}
8... Bb7 {[%clk 0:02:56.8]} 9. Nc3 {[%clk 0:03:02.4]} 9... d6 {[%clk 0:02:51.7]}
10. a3 {[%clk 0:03:02.3]} 10... Na5 {[%clk 0:02:49.9]} 11. Ba2 {[%clk
0:03:02.3]} 11... c5 {[%clk 0:02:50.5]} 12. d3 {[%clk 0:02:59.9]} 12... Re8
{[%clk 0:02:39.1]} 13. Bg5 {[%clk 0:02:56.1]} 13... Nc6 {[%clk 0:02:37.2]} 14.
Bxf6 {[%clk 0:02:47.1]} 14... Bxf6 {[%clk 0:02:35.8]} 15. Nd5 {[%clk 0:02:47.7]}
15... Nd4 {[%clk 0:02:34.9]} 16. c3 {[%clk 0:02:47.8]} 16... Ne6 {[%clk
0:02:33.5]} 17. Nh2 {[%clk 0:02:40.3]} 17... Rc8 {[%clk 0:02:19.2]} 18. a4
{[%clk 0:02:35.3]} 18... Bxd5 {[%clk 0:02:14.8]} 19. Bxd5 {[%clk 0:02:34.7]}
19... Nf4 {[%clk 0:02:14.9]} 20. Ng4 {[%clk 0:02:32.5]} 20... Nxd5 {[%clk
0:02:08.4]} 21. exd5 {[%clk 0:02:32.1]} 21... Bg5 {[%clk 0:02:08.9]} 22. axb5
{[%clk 0:02:27.4]} 22... axb5 {[%clk 0:02:09.8]} 23. Ra7 {[%clk 0:02:26.5]}
23... Rc7 {[%clk 0:02:06.8]} 24. Qa1 {[%clk 0:02:10.5]} 24... Rxa7 {[%clk
0:01:54.7]} 25. Qxa7 {[%clk 0:02:09]} 25... Qa8 {[%clk 0:01:55.2]} 26. Qd7
{[%clk 0:02:05.4]} 26... Rd8 {[%clk 0:01:42.1]} 27. Qxb5 {[%clk 0:01:57.4]}
27... Qxd5 {[%clk 0:01:41.2]} 28. Ra1 {[%clk 0:01:57.7]} 28... e4 {[%clk
0:01:31.7]} 29. dxe4 {[%clk 0:01:47.3]} 29... Qxe4 {[%clk 0:01:32.6]} 30. Nh2
{[%clk 0:01:45.5]} 30... Bf4 {[%clk 0:01:26]} 31. Nf3 {[%clk 0:01:43.7]} 31...
h6 {[%clk 0:01:22.2]} 32. Re1 {[%clk 0:01:36.4]} 32... Qf5 {[%clk 0:00:58.1]}
33. b4 {[%clk 0:01:30.7]} 33... g6 {[%clk 0:00:13]} 34. Qb6 {[%clk 0:01:17.7]}
34... Ra8 {[%clk 0:00:10.1]} 35. b5 {[%clk 0:01:13.3]} 35... Qc2 {[%clk
0:00:07.5]} 36. Qc6 {[%clk 0:00:51.9]} 36... Ra2 {[%clk 0:00:07.1]} 37. Rf1
{[%clk 0:00:49]} 37... Rb2 {[%clk 0:00:07.1]} 38. b6 {[%clk 0:00:39.5]} 38...
Qb3 {[%clk 0:00:06.4]} 39. g3 {[%clk 0:00:39]} 39... Be5 {[%clk 0:00:06.1]} 40.
Nxe5 {[%clk 0:00:33.5]} 40... dxe5 {[%clk 0:00:07]} 41. Qxc5 {[%clk 0:00:33.4]}
41... Qxb6 {[%clk 0:00:06.7]} 42. Qxe5 {[%clk 0:00:33.6]} 42... Qe6 {[%clk
0:00:06]} 43. Qxe6 {[%clk 0:00:26.8]} 43... fxe6 {[%clk 0:00:06.9]} 44. Rc1
{[%clk 0:00:27]} 44... Kf7 {[%clk 0:00:07.2]} 45. Kg2 {[%clk 0:00:26.2]} 45...
Ke7 {[%clk 0:00:07.4]} 46. Kf3 {[%clk 0:00:26.7]} 46... Kd6 {[%clk 0:00:07.8]}
47. Ke3 {[%clk 0:00:27.1]} 47... Ke5 {[%clk 0:00:07.5]} 48. f4+ {[%clk
0:00:26.6]} 48... Kd5 {[%clk 0:00:07.7]} 49. Kf3 {[%clk 0:00:26.6]} 49... Rb3
{[%clk 0:00:07.5]} 50. Kg4 {[%clk 0:00:25.8]} 50... Kd6 {[%clk 0:00:05.8]} 51.
h4 {[%clk 0:00:26.1]} 51... Ke7 {[%clk 0:00:04.8]} 52. h5 {[%clk 0:00:26.5]}
52... Kf6 {[%clk 0:00:04.9]} 53. hxg6 {[%clk 0:00:26.6]} 53... Kxg6 {[%clk
0:00:05.8]} 54. Re1 {[%clk 0:00:26.2]} 54... Kf6 {[%clk 0:00:05.6]} 55. Re3
{[%clk 0:00:25.9]} 55... Rb5 {[%clk 0:00:04.9]} 56. Kh4 {[%clk 0:00:20.6]} 56...
Rc5 {[%clk 0:00:04.8]} 57. Kg4 {[%clk 0:00:19.6]} 57... Rd5 {[%clk 0:00:04.9]}
58. Kf3 {[%clk 0:00:19.9]} 58... Rc5 {[%clk 0:00:05.3]} 59. Ke4 {[%clk
0:00:20.3]} 59... Ke7 {[%clk 0:00:05]} 60. Kd4 {[%clk 0:00:20.3]} 60... Rc8
{[%clk 0:00:04.7]} 61. c4 {[%clk 0:00:20.5]} 61... Kd6 {[%clk 0:00:05.2]} 62.
c5+ {[%clk 0:00:19.2]} 62... Rxc5 {[%clk 0:00:04.8]} 63. Rxe6+ {[%clk
0:00:19.3]} 63... Kxe6 {[%clk 0:00:05.7]} 64. Kxc5 {[%clk 0:00:19.8]} 64... Kf5
{[%clk 0:00:06.1]} 65. Kd4 {[%clk 0:00:20.1]} 65... h5 {[%clk 0:00:06.6]} 66.
Ke3 {[%clk 0:00:20.4]} 66... Kg4 {[%clk 0:00:07]} 67. Ke4 {[%clk 0:00:20.5]}
67... h4 {[%clk 0:00:07.4]} 68. gxh4 {[%clk 0:00:20.9]} 68... Kxh4 {[%clk
0:00:08.3]} 69. f5 {[%clk 0:00:21.3]} 69... Kh5 {[%clk 0:00:09.2]} 70. Ke5
{[%clk 0:00:21.5]} 70... Kh6 {[%clk 0:00:10]} 71. Ke6 {[%clk 0:00:21.7]} 71...
Kg7 {[%clk 0:00:10.9]} 72. Ke7 {[%clk 0:00:22.1]} 1-0

[Event "*** Titled Tuesday Blitz"]
[Site "Chess.com"]
[Date "2020.05.05"]
[Round "3"]
[White "Alexander_Moskalenko"]
[Black "mortngabriel"]
[Result "1/2-1/2"]
[WhiteElo "2831"]
[BlackElo "2466"]
[TimeControl "180+1"]
[EndTime "10:30:32 PDT"]
[Termination "Game drawn - insufficient material"]

1. e4 {[%clk 0:03:00.9]} 1... c5 {[%clk 0:02:59.5]} 2. Nc3 {[%clk 0:03:00.3]}
2... Nc6 {[%clk 0:02:59.1]} 3. Bb5 {[%clk 0:02:59]} 3... Nd4 {[%clk 0:02:59.1]}
4. Bc4 {[%clk 0:02:58.2]} 4... e6 {[%clk 0:02:58.6]} 5. Nf3 {[%clk 0:02:55.7]}
5... Nf6 {[%clk 0:02:58.4]} 6. O-O {[%clk 0:02:48.9]} 6... a6 {[%clk 0:02:57.4]}
7. d3 {[%clk 0:02:47.7]} 7... b5 {[%clk 0:02:56.8]} 8. Bb3 {[%clk 0:02:37.4]}
8... Nxb3 {[%clk 0:02:57.1]} 9. axb3 {[%clk 0:02:38.3]} 9... Bb7 {[%clk
0:02:57.6]} 10. Re1 {[%clk 0:02:36.2]} 10... d6 {[%clk 0:02:56.5]} 11. e5 {[%clk
0:02:33.4]} 11... dxe5 {[%clk 0:02:54.7]} 12. Nxe5 {[%clk 0:02:34.3]} 12... Be7
{[%clk 0:02:35.9]} 13. Bg5 {[%clk 0:02:13.9]} 13... O-O {[%clk 0:02:33]} 14. Qe2
{[%clk 0:02:10.6]} 14... Nd5 {[%clk 0:02:07.1]} 15. Bxe7 {[%clk 0:01:58.1]}
15... Qxe7 {[%clk 0:02:06.8]} 16. Qg4 {[%clk 0:01:52.1]} 16... Rad8 {[%clk
0:01:29.3]} 17. Nxd5 {[%clk 0:01:49.4]} 17... Rxd5 {[%clk 0:01:30.2]} 18. Re3
{[%clk 0:01:36.7]} 18... Rd4 {[%clk 0:01:25.6]} 19. Qg3 {[%clk 0:01:35.7]} 19...
Rfd8 {[%clk 0:01:16.4]} 20. Rae1 {[%clk 0:01:33.6]} 20... Qh4 {[%clk 0:01:03.7]}
21. Qxh4 {[%clk 0:01:10.2]} 21... Rxh4 {[%clk 0:01:04.6]} 22. c3 {[%clk
0:01:09.2]} 22... Bd5 {[%clk 0:00:52.6]} 23. g3 {[%clk 0:01:03.6]} 23... Rh5
{[%clk 0:00:46.6]} 24. Ra1 {[%clk 0:01:02.5]} 24... Ra8 {[%clk 0:00:35.3]} 25.
c4 {[%clk 0:00:59.9]} 25... Bb7 {[%clk 0:00:32.1]} 26. Ra5 {[%clk 0:00:55]}
26... f6 {[%clk 0:00:17.6]} 27. Nd7 {[%clk 0:00:53.9]} 27... Rd8 {[%clk
0:00:13.7]} 28. cxb5 {[%clk 0:00:20.2]} 28... Rxd7 {[%clk 0:00:13.5]} 29. bxa6
{[%clk 0:00:21.1]} 29... Ba8 {[%clk 0:00:14.1]} 30. a7 {[%clk 0:00:20]} 30...
Kf7 {[%clk 0:00:12.9]} 31. b4 {[%clk 0:00:19.5]} 31... Rhd5 {[%clk 0:00:11.7]}
32. bxc5 {[%clk 0:00:18.9]} 32... Rxd3 {[%clk 0:00:11.5]} 33. Rxd3 {[%clk
0:00:19.6]} 33... Rxd3 {[%clk 0:00:12.4]} 34. f4 {[%clk 0:00:19.9]} 34... Rb3
{[%clk 0:00:11]} 35. c6 {[%clk 0:00:17.6]} 35... Rxb2 {[%clk 0:00:07.2]} 36. Rc5
{[%clk 0:00:16.5]} 36... Ra2 {[%clk 0:00:02.5]} 37. c7 {[%clk 0:00:16.2]} 37...
Bb7 {[%clk 0:00:02.9]} 38. Rb5 {[%clk 0:00:13.9]} 38... Bc8 {[%clk 0:00:03.3]}
39. Rb8 {[%clk 0:00:13.5]} 39... Rxa7 {[%clk 0:00:02.6]} 40. Rxc8 {[%clk
0:00:13.2]} 40... h5 {[%clk 0:00:02.1]} 41. h3 {[%clk 0:00:11.1]} 41... Ra1+
{[%clk 0:00:01.3]} 42. Kf2 {[%clk 0:00:11]} 42... Rc1 {[%clk 0:00:02.2]} 43. Ke3
{[%clk 0:00:11.1]} 43... Rc2 {[%clk 0:00:01.9]} 44. Kd3 {[%clk 0:00:10.5]} 44...
Rc1 {[%clk 0:00:02.3]} 45. g4 {[%clk 0:00:10]} 45... Rc5 {[%clk 0:00:01.8]} 46.
Kd4 {[%clk 0:00:05.9]} 46... Rc6 {[%clk 0:00:02.7]} 47. f5 {[%clk 0:00:02]}
47... Rc1 {[%clk 0:00:03.6]} 48. fxe6+ {[%clk 0:00:01.7]} 48... Ke7 {[%clk
0:00:03.4]} 49. Rg8 {[%clk 0:00:02.1]} 49... Rxc7 {[%clk 0:00:02.6]} 50. Rxg7+
{[%clk 0:00:02.6]} 50... Kd6 {[%clk 0:00:03.5]} 51. Rxc7 {[%clk 0:00:03.1]}
51... Kxc7 {[%clk 0:00:04.3]} 52. Ke4 {[%clk 0:00:01.6]} 52... Kd6 {[%clk
0:00:04.5]} 53. Kf5 {[%clk 0:00:01.9]} 53... hxg4 {[%clk 0:00:03.7]} 54. hxg4
{[%clk 0:00:02.8]} 54... Ke7 {[%clk 0:00:04]} 55. Kf4 {[%clk 0:00:02.9]} 55...
Kxe6 {[%clk 0:00:04.3]} 56. g5 {[%clk 0:00:03.6]} 56... fxg5+ {[%clk 0:00:04.5]}
57. Kxg5 {[%clk 0:00:04.5]} 1/2-1/2

[Event "*** Titled Tuesday Blitz"]
[Site "Chess.com"]
[Date "2020.05.05"]
[Round "3"]
[White "Lupul_Cenusiu"]
[Black "annamaja"]
[Result "1/2-1/2"]
[WhiteElo "2520"]
[BlackElo "2309"]
[TimeControl "180+1"]
[EndTime "10:30:32 PDT"]
[Termination "Game drawn by stalemate"]

1. d4 {[%clk 0:03:00.9]} 1... Nf6 {[%clk 0:02:59.3]} 2. c4 {[%clk 0:03:00.4]}
2... e6 {[%clk 0:02:59.9]} 3. Nc3 {[%clk 0:03:00.4]} 3... Bb4 {[%clk 0:02:59.7]}
4. Bd2 {[%clk 0:03:00.7]} 4... O-O {[%clk 0:02:59.8]} 5. Nf3 {[%clk 0:03:00.3]}
5... d5 {[%clk 0:02:53.2]} 6. e3 {[%clk 0:02:57.5]} 6... b6 {[%clk 0:02:51.7]}
7. cxd5 {[%clk 0:02:54.3]} 7... exd5 {[%clk 0:02:52.6]} 8. Be2 {[%clk
0:02:52.4]} 8... Re8 {[%clk 0:02:48.5]} 9. Ne5 {[%clk 0:02:49.6]} 9... Bxc3
{[%clk 0:02:33.3]} 10. Bxc3 {[%clk 0:02:46.5]} 10... Ne4 {[%clk 0:02:34.2]} 11.
Bf3 {[%clk 0:02:42.1]} 11... Bb7 {[%clk 0:02:11.5]} 12. Qb3 {[%clk 0:02:24.2]}
12... Qf6 {[%clk 0:01:50.2]} 13. O-O {[%clk 0:01:50.4]} 13... h6 {[%clk
0:01:31.2]} 14. Rac1 {[%clk 0:01:45.5]} 14... Na6 {[%clk 0:01:21.3]} 15. Qa3
{[%clk 0:01:31.5]} 15... Nxc3 {[%clk 0:00:55.9]} 16. bxc3 {[%clk 0:01:22.3]}
16... c5 {[%clk 0:00:56.2]} 17. c4 {[%clk 0:01:16]} 17... cxd4 {[%clk
0:00:51.1]} 18. exd4 {[%clk 0:01:14.9]} 18... Nc7 {[%clk 0:00:47.3]} 19. Rfd1
{[%clk 0:00:51.6]} 19... a5 {[%clk 0:00:41.6]} 20. Qb2 {[%clk 0:00:48.1]} 20...
Rad8 {[%clk 0:00:23.7]} 21. c5 {[%clk 0:00:43.8]} 21... b5 {[%clk 0:00:20.3]}
22. h3 {[%clk 0:00:26.3]} 22... b4 {[%clk 0:00:15.1]} 23. a3 {[%clk 0:00:25.3]}
23... Na6 {[%clk 0:00:09.9]} 24. Be2 {[%clk 0:00:20.2]} 24... Rb8 {[%clk
0:00:04.7]} 25. Nd7 {[%clk 0:00:19.3]} 25... Qe7 {[%clk 0:00:03.2]} 26. Nxb8
{[%clk 0:00:19.1]} 26... Qxe2 {[%clk 0:00:02.6]} 27. Qxe2 {[%clk 0:00:17.8]}
27... Rxe2 {[%clk 0:00:03.5]} 28. c6 {[%clk 0:00:17.5]} 28... Bc8 {[%clk
0:00:03.3]} 29. Nxa6 {[%clk 0:00:16.6]} 29... Bxa6 {[%clk 0:00:03.5]} 30. c7
{[%clk 0:00:16.4]} 30... Bc8 {[%clk 0:00:04.1]} 31. axb4 {[%clk 0:00:16.4]}
31... axb4 {[%clk 0:00:05]} 32. Rb1 {[%clk 0:00:15.4]} 32... Rc2 {[%clk
0:00:04.9]} 33. Rdc1 {[%clk 0:00:15.4]} 33... Rxc1+ {[%clk 0:00:02.9]} 34. Rxc1
{[%clk 0:00:15.5]} 34... Kf8 {[%clk 0:00:03.2]} 35. Rb1 {[%clk 0:00:15.1]} 35...
Ke7 {[%clk 0:00:03.9]} 36. Rxb4 {[%clk 0:00:15.1]} 36... Kd7 {[%clk 0:00:04.7]}
37. Rb5 {[%clk 0:00:15.4]} 37... Kxc7 {[%clk 0:00:04.3]} 38. Rxd5 {[%clk
0:00:15.4]} 38... Be6 {[%clk 0:00:05.2]} 39. Rc5+ {[%clk 0:00:14.4]} 39... Kd6
{[%clk 0:00:05.8]} 40. f3 {[%clk 0:00:14.7]} 40... Bd7 {[%clk 0:00:05.5]} 41.
Kf2 {[%clk 0:00:14.8]} 41... Be6 {[%clk 0:00:06.1]} 42. Ke3 {[%clk 0:00:14.9]}
42... Ba2 {[%clk 0:00:06.4]} 43. g4 {[%clk 0:00:14.4]} 43... Be6 {[%clk
0:00:05.5]} 44. f4 {[%clk 0:00:14.1]} 44... g6 {[%clk 0:00:04.9]} 45. Ra5 {[%clk
0:00:13]} 45... Ke7 {[%clk 0:00:03.5]} 46. d5 {[%clk 0:00:12.1]} 46... Bd7
{[%clk 0:00:03.5]} 47. Ra6 {[%clk 0:00:11.5]} 47... h5 {[%clk 0:00:03]} 48. gxh5
{[%clk 0:00:10.6]} 48... gxh5 {[%clk 0:00:03.9]} 49. h4 {[%clk 0:00:10.8]} 49...
Bg4 {[%clk 0:00:04.1]} 50. Kd4 {[%clk 0:00:10.7]} 50... Kd7 {[%clk 0:00:03.9]}
51. Ke5 {[%clk 0:00:08.5]} 51... Be2 {[%clk 0:00:04.6]} 52. Ra7+ {[%clk
0:00:08.2]} 52... Ke8 {[%clk 0:00:04.5]} 53. Kf6 {[%clk 0:00:08.1]} 53... Bc4
{[%clk 0:00:03.6]} 54. d6 {[%clk 0:00:08.2]} 54... Be6 {[%clk 0:00:03.2]} 55.
Re7+ {[%clk 0:00:07.4]} 55... Kd8 {[%clk 0:00:03.1]} 56. Rxe6 {[%clk 0:00:07.3]}
56... fxe6 {[%clk 0:00:04]} 57. Kxe6 {[%clk 0:00:07.3]} 57... Ke8 {[%clk
0:00:04.9]} 58. f5 {[%clk 0:00:07.6]} 58... Kf8 {[%clk 0:00:04.9]} 59. d7 {[%clk
0:00:07.4]} 59... Kg7 {[%clk 0:00:05.8]} 60. d8=Q {[%clk 0:00:07]} 60... Kh6
{[%clk 0:00:06.7]} 61. Qe7 {[%clk 0:00:07.1]} 1/2-1/2